bitfinex/quotes_BTCUSD_20211001
["timestamp","ask_amount","ask_price","bid_price","bid_amount"]
[1633052558060,0.0004,43687.0,43686.0,0.58130279]
[1633052558456,0.0004,43687.0,43686.0,0.82130279]
[1633052559457,0.0004,43687.0,43686.0,0.76130279]
[1633052560058,0.0004,43687.0,43686.0,0.82330279]
[1633052560458,0.0006,43688.0,43686.0,1.04650279]
[1633052560660,0.0006,43688.0,43687.0,2.10109417]
[1633052560861,0.0006,43688.0,43687.0,2.20109417]
[1633052561060,0.0008,43691.0,43688.0,1.05]
[1633052561260,0.0008,43691.0,43688.0,1.28007646]
[1633052561562,0.0008,43691.0,43688.0,0.23007646]
[1633052561763,0.0008,43691.0,43688.0,0.228787]
[1633052561962,0.0008,43691.0,43688.0,0.287787]
[1633052563161,0.23043741,43690.0,43688.0,0.059]
[1633052563560,0.57384741,43690.0,43688.0,0.059]
[1633052563966,0.57384741,43690.0,43688.0,0.041]
[1633052564760,0.57437728,43690.0,43688.0,0.041]
[1633052564964,0.04086131,43689.0,43688.0,0.041]
[1633052565561,0.04086131,43689.0,43685.0,0.19174543]
[1633052566163,0.04086131,43689.0,43685.0,0.24074543]
[1633052567361,0.343433,43688.0,43685.0,0.19174543]
[1633052567767,0.57239002,43688.0,43685.0,0.19174543]
[1633052567964,0.22895702,43688.0,43685.0,0.19174543]
[1633052568162,0.22895702,43688.0,43685.0,0.24074543]
[1633052568763,0.09351211,43686.0,43685.0,0.24074543]
[1633052569164,0.22895702,43688.0,43685.0,0.24074543]
[1633052569362,0.34344,43687.0,43685.0,0.19174543]
[1633052570164,0.09311607,43686.0,43685.0,0.23674543]
[1633052570564,0.34344,43687.0,43685.0,0.23674543]
[1633052571567,0.34344,43687.0,43685.0,0.19174543]
[1633052572165,0.34344,43687.0,43685.0,0.23774543]
[1633052573567,0.34344,43687.0,43685.0,0.19174543]
[1633052574167,0.39544,43687.0,43685.0,0.22174543]
[1633052575443,0.34344,43687.0,43685.0,0.19174543]
[1633052576043,0.38444,43687.0,43685.0,0.21774543]
[1633052577443,0.34344,43687.0,43685.0,0.19174543]
[1633052578043,0.38444,43687.0,43685.0,0.21674543]
[1633052580248,0.42644,43687.0,43685.0,0.24274543]
[1633052580648,0.38544,43687.0,43685.0,0.21774543]
[1633052580850,0.34344,43687.0,43685.0,0.19174543]
[1633052582051,0.22895702,43688.0,43685.0,0.19174543]
[1633052582249,0.047,43687.0,43685.0,0.21874543]
[1633052583452,0.57240202,43688.0,43685.0,0.19174543]
[1633052584051,0.22895702,43688.0,43685.0,0.19174543]
[1633052584252,0.27695702,43688.0,43685.0,0.21974543]
[1633052584453,0.27695702,43688.0,43687.0,0.00126185]
[1633052585451,0.22895702,43688.0,43687.0,0.00126185]
[1633052586251,0.26795702,43688.0,43687.0,0.04426185]
[1633052587451,0.26795702,43688.0,43687.0,0.00126185]
[1633052587651,0.22895702,43688.0,43687.0,0.00126185]
[1633052588250,0.22895702,43688.0,43687.0,0.27204885]
[1633052588251,0.26695702,43688.0,43687.0,0.27204885]
[1633052588452,0.26695702,43688.0,43687.0,0.45339209]
[1633052588453,0.038,43688.0,43687.0,0.45339209]
[1633052588655,0.038,43688.0,43687.0,0.50339209]
[1633052588854,0.038,43688.0,43687.0,0.27204885]
[1633052589652,0.0408,43689.0,43687.0,0.23004885]
[1633052590255,0.0778,43689.0,43687.0,0.27304885]
[1633052592054,0.0778,43689.0,43687.0,0.00126185]
[1633052592255,0.0768,43689.0,43687.0,0.04226185]
[1633052593055,0.00488887,43688.0,43687.0,0.04226185]
[1633052593656,0.00488887,43688.0,43687.0,0.00126185]
[1633052594256,0.04188887,43688.0,43687.0,0.04326185]
[1633052595656,0.00488887,43688.0,43687.0,0.00126185]
[1633052596258,0.04188887,43688.0,43687.0,0.04426185]
[1633052597063,0.04188887,43688.0,43687.0,0.27304885]
[1633052598260,0.04388887,43688.0,43687.0,0.27404885]
[1633052598860,0.04388887,43688.0,43687.0,0.32404885]
[1633052599260,0.04388887,43688.0,43687.0,0.50021623]
[1633052599661,0.00488887,43688.0,43687.0,0.67941623]
[1633052600261,0.0408,43689.0,43688.0,0.5]
[1633052600461,0.0408,43689.0,43688.0,0.91212665]
[1633052601063,0.0408,43689.0,43688.0,1.13532665]
[1633052601464,0.0408,43689.0,43688.0,1.23532665]
[1633052602328,0.0408,43689.0,43688.0,1.29632665]
[1633052603665,0.0408,43689.0,43688.0,1.23532665]
[1633052604268,0.0408,43689.0,43688.0,1.29732665]
[1633052605668,0.0408,43689.0,43688.0,1.23532665]
[1633052606270,0.0408,43689.0,43688.0,1.29732665]
[1633052607673,0.001499,43690.0,43689.0,1.15]
[1633052607871,0.001499,43690.0,43689.0,1.60327654]
[1633052608070,0.001499,43690.0,43689.0,1.70327654]
[1633052608333,0.001499,43690.0,43689.0,1.76427654]
[1633052609274,0.001499,43690.0,43689.0,1.75307654]
[1633052609476,0.001499,43690.0,43689.0,1.69207654]
[1633052610274,0.001499,43690.0,43689.0,1.75607654]
[1633052611875,0.001499,43690.0,43689.0,1.69207654]
[1633052612275,0.001499,43690.0,43689.0,1.75507654]
[1633052613180,0.001499,43690.0,43689.0,0.291787]
[1633052613878,0.001499,43690.0,43689.0,0.228787]
[1633052614077,0.2093651,43690.0,43689.0,0.228787]
[1633052614344,0.2503651,43690.0,43689.0,0.046]
[1633052614479,0.5386032,43690.0,43689.0,0.046]
[1633052614880,0.53913307,43690.0,43689.0,0.046]
[1633052615079,0.61536982,43690.0,43689.0,0.046]
[1633052615279,0.43742415,43690.0,43689.0,0.046]
[1633052615479,0.43742415,43690.0,43685.0,0.19174543]
[1633052615679,0.57885078,43690.0,43685.0,0.19174543]
[1633052615879,0.34343,43689.0,43685.0,0.19174543]
[1633052616278,0.34343,43689.0,43685.0,0.24174543]
[1633052616882,0.34343,43689.0,43686.0,0.0202]
[1633052618281,0.37643,43689.0,43686.0,0.0692]
[1633052619681,0.37643,43689.0,43686.0,0.0202]
[1633052619682,0.34343,43689.0,43686.0,0.0202]
[1633052620342,0.37743,43689.0,43686.0,0.0712]
[1633052620685,0.37743,43689.0,43687.0,0.39890241]
[1633052620686,0.034,43689.0,43687.0,0.39890241]
[1633052620886,0.034,43689.0,43688.0,1.34493364]
[1633052621086,0.034,43689.0,43688.0,1.49493364]
[1633052621285,0.034,43689.0,43688.0,2.5166247]
[1633052621482,0.034,43689.0,43688.0,2.7666247]
[1633052621683,0.034,43689.0,43688.0,2.83969063]
[1633052621885,0.001499,43690.0,43688.0,2.83969063]
[1633052622085,0.001499,43690.0,43689.0,1.1800494]
[1633052622282,0.001499,43690.0,43689.0,1.2002494]
[1633052622484,0.001499,43690.0,43689.0,1.3002494]
[1633052623682,0.001499,43690.0,43689.0,0.3502494]
[1633052624284,0.001499,43690.0,43689.0,0.4102494]
[1633052625287,0.001499,43690.0,43689.0,0.82070492]
[1633052625488,0.001499,43690.0,43689.0,2.04780492]
[1633052625685,0.001499,43690.0,43689.0,1.98780492]
[1633052626345,0.001499,43690.0,43689.0,2.05080492]
[1633052627089,0.00156147,43690.0,43689.0,2.05080492]
[1633052627887,0.0008,43696.0,43694.0,0.60265605]
[1633052628089,0.0008,43696.0,43694.0,1.18623033]
[1633052628289,0.0008,43696.0,43694.0,1.50943033]
[1633052628890,0.0008,43696.0,43694.0,0.90943033]
[1633052630291,0.09934416,43706.0,43697.0,0.00238537]
[1633052630488,0.09934416,43706.0,43697.0,0.43373712]
[1633052631089,0.00152987,43705.0,43697.0,0.43373712]
[1633052631290,0.001,43705.0,43697.0,0.43373712]
[1633052632290,0.001,43705.0,43697.0,0.48673712]
[1633052633494,0.001,43705.0,43697.0,0.43373712]
[1633052633700,0.0008,43698.0,43697.0,0.80365712]
[1633052633902,0.0004,43698.0,43697.0,0.90365712]
[1633052634097,0.0004,43698.0,43697.0,0.90487297]
[1633052634298,0.0004,43698.0,43697.0,2.18087297]
[1633052634496,0.001,43705.0,43698.0,1.379067]
[1633052634696,0.001,43705.0,43699.0,1.51180512]
[1633052634898,0.0649666,43701.0,43700.0,1.228787]
[1633052635094,0.0649666,43701.0,43700.0,2.96326355]
[1633052635296,0.0649666,43701.0,43700.0,3.11326355]
[1633052635514,0.0006,43705.0,43702.0,0.0002]
[1633052635698,0.0008,43706.0,43704.0,0.23000639]
[1633052635904,0.0014,43721.0,43709.0,1.1]
[1633052636102,0.0014,43721.0,43709.0,1.96066702]
[1633052636300,0.0014,43721.0,43709.0,2.06066702]
[1633052636496,0.0014,43721.0,43709.0,3.27366702]
[1633052636696,0.0014,43721.0,43711.0,0.228787]
[1633052636697,0.0008,43713.0,43711.0,0.228787]
[1633052636899,0.0008,43713.0,43712.0,1.50892424]
[1633052637297,0.0008,43713.0,43712.0,1.83212424]
[1633052637497,0.00087535,43713.0,43712.0,1.83212424]
[1633052638099,0.00087535,43713.0,43712.0,0.75892424]
[1633052638367,0.00087535,43713.0,43712.0,0.82392424]
[1633052638502,0.00087535,43713.0,43712.0,0.50424079]
[1633052638698,0.00087535,43713.0,43712.0,0.31528338]
[1633052638899,0.00087535,43713.0,43712.0,0.49186762]
[1633052639697,0.00087535,43713.0,43712.0,0.42195013]
[1633052639898,0.00087535,43713.0,43712.0,0.35028338]
[1633052640100,0.06490845,43717.0,43713.0,0.4]
[1633052640298,0.06490845,43717.0,43716.0,0.00122916]
[1633052640499,0.06490845,43717.0,43716.0,0.25021616]
[1633052640702,0.06490845,43717.0,43716.0,0.24981616]
[1633052642099,0.06490845,43717.0,43716.0,0.248987]
[1633052642300,0.06490845,43717.0,43716.0,0.302987]
[1633052642907,0.06490845,43717.0,43716.0,0.97049302]
[1633052643303,0.06490845,43717.0,43716.0,1.18397946]
[1633052643501,0.06490845,43717.0,43716.0,0.97049302]
[1633052643702,0.06490845,43717.0,43716.0,0.91649302]
[1633052644365,0.06490845,43717.0,43716.0,0.98401463]
[1633052645705,0.06490845,43717.0,43716.0,0.91801463]
[1633052646305,0.06490845,43717.0,43716.0,0.98401463]
[1633052647706,0.06490845,43717.0,43716.0,0.91801463]
[1633052647907,0.06490845,43717.0,43716.0,0.69481463]
[1633052648108,0.06498008,43717.0,43716.0,0.69481463]
[1633052648307,0.06498008,43717.0,43716.0,0.93454865]
[1633052649109,0.06498008,43717.0,43716.0,0.75981463]
[1633052649310,0.06498008,43717.0,43716.0,0.98301463]
[1633052649710,0.06498008,43717.0,43716.0,0.91801463]
[1633052649909,0.06498008,43717.0,43716.0,0.69481463]
[1633052650111,0.06498008,43717.0,43716.0,0.87446035]
[1633052650309,0.06498008,43717.0,43716.0,0.93846035]
[1633052651311,0.06498008,43717.0,43716.0,0.75881463]
[1633052651711,0.06498008,43717.0,43716.0,0.69481463]
[1633052651914,0.06498008,43717.0,43716.0,0.86760649]
[1633052652114,0.06498008,43717.0,43716.0,0.69481463]
[1633052652312,0.06498008,43717.0,43716.0,0.76081463]
[1633052652512,0.06498008,43717.0,43716.0,0.93569284]
[1633052652717,0.06498008,43717.0,43716.0,2.37189284]
[1633052652920,0.0002,43718.0,43716.0,2.72189284]
[1633052653113,0.0002,43718.0,43717.0,1.72235278]
[1633052653383,0.0014,43721.0,43718.0,1.378787]
[1633052653514,0.0014,43721.0,43719.0,1.69060365]
[1633052653515,0.0004,43720.0,43719.0,1.69060365]
[1633052653718,0.0004,43720.0,43719.0,1.69181483]
[1633052654035,0.06405955,43732.0,43719.0,1.69181483]
[1633052654036,0.2671705,43749.0,43747.0,1.1269025]
[1633052654218,0.001,43751.0,43750.0,0.03164971]
[1633052654422,0.01203659,43754.0,43753.0,0.228787]
[1633052654625,0.05915255,43764.0,43756.0,0.00028]
[1633052654814,0.05915255,43764.0,43758.0,0.73001055]
[1633052655017,0.05915255,43764.0,43758.0,0.85021055]
[1633052655213,0.0006,43759.0,43758.0,1.40074065]
[1633052655415,0.0783,43762.0,43761.0,1.10249451]
[1633052655614,0.0333,43762.0,43761.0,2.15567292]
[1633052655814,0.0333,43762.0,43761.0,1.10611766]
[1633052656013,0.0333,43762.0,43761.0,1.10558756]
[1633052656217,0.0333,43762.0,43761.0,1.74827356]
[1633052656420,0.0333,43762.0,43761.0,1.80927356]
[1633052657017,0.0333,43762.0,43761.0,1.50927356]
[1633052657416,0.05915255,43764.0,43762.0,1.15]
[1633052657616,0.001,43767.0,43765.0,1.15028]
[1633052657818,0.001,43767.0,43765.0,2.16012102]
[1633052658015,0.0006,43767.0,43766.0,0.7]
[1633052658213,0.001,43771.0,43768.0,0.778787]
[1633052658214,0.0324,43769.0,43768.0,0.778787]
[1633052658418,0.0324,43769.0,43768.0,0.97748436]
[1633052658616,0.0324,43769.0,43768.0,1.32064446]
[1633052658814,0.0324,43769.0,43768.0,0.77011436]
[1633052659420,0.0008,43771.0,43769.0,1.378787]
[1633052659613,0.0008,43771.0,43770.0,0.41722626]
[1633052659817,0.0008,43771.0,43770.0,0.25023316]
[1633052659818,0.19269166,43771.0,43770.0,0.25023316]
[1633052660022,0.0008,43771.0,43770.0,0.248987]
[1633052660419,0.0008,43771.0,43770.0,0.311987]
[1633052661620,0.0008,43771.0,43770.0,1.66495327]
[1633052661813,0.0008,43771.0,43770.0,1.60186791]
[1633052662016,0.0008,43771.0,43770.0,1.95186791]
[1633052662215,0.0008,43771.0,43770.0,1.60186791]
[1633052662419,0.0008,43771.0,43770.0,1.67286791]
[1633052662616,0.0008,43771.0,43770.0,1.91286791]
[1633052663216,0.0008,43771.0,43770.0,1.91412182]
[1633052663617,0.0008,43771.0,43770.0,1.84312182]
[1633052664417,0.0008,43771.0,43770.0,1.90712182]
[1633052665817,0.0008,43771.0,43770.0,1.84312182]
[1633052666418,0.0008,43771.0,43770.0,1.90512182]
[1633052667821,0.0008,43771.0,43770.0,1.84312182]
[1633052668621,0.0008,43771.0,43770.0,0.55124091]
[1633052669223,0.0008,43771.0,43770.0,0.549987]
[1633052669224,0.00092638,43771.0,43770.0,0.549987]
[1633052669425,0.00092638,43771.0,43770.0,0.539987]
[1633052669822,0.00092638,43771.0,43770.0,0.478987]
[1633052670624,0.00092638,43771.0,43770.0,0.539987]
[1633052671429,0.19754193,43774.0,43770.0,0.539987]
[1633052671626,0.001,43775.0,43770.0,0.539987]
[1633052672026,0.001,43775.0,43770.0,0.478987]
[1633052672625,0.001,43775.0,43770.0,0.61797896]
[1633052673024,0.001,43775.0,43770.0,0.538987]
[1633052673223,0.001,43775.0,43770.0,0.881692]
[1633052673823,0.15987011,43776.0,43775.0,0.00028]
[1633052673824,0.15587011,43776.0,43775.0,0.00028]
[1633052674025,0.3104619,43777.0,43775.0,0.02048]
[1633052674225,0.23747868,43777.0,43775.0,0.02048]
[1633052674487,0.23747868,43777.0,43775.0,0.07448]
[1633052674689,0.0015063,43777.0,43775.0,0.07448]
[1633052675088,0.0015063,43777.0,43775.0,0.07599955]
[1633052675690,0.17685682,43776.0,43775.0,0.07599955]
[1633052675886,0.17685682,43776.0,43775.0,0.02199955]
[1633052676291,0.0015063,43777.0,43775.0,0.02199955]
[1633052676486,0.05669905,43779.0,43775.0,0.02199955]
[1633052676487,0.05420535,43779.0,43775.0,0.02199955]
[1633052676686,0.05420535,43779.0,43775.0,0.07599955]
[1633052678096,0.05420535,43779.0,43775.0,0.02199955]
[1633052678496,0.05420535,43779.0,43775.0,0.07599955]
[1633052680096,0.00011988,43778.0,43775.0,0.02199955]
[1633052680504,0.00011988,43778.0,43775.0,0.07599955]
[1633052681303,0.00011988,43778.0,43776.0,0.15702159]
[1633052681504,0.00011988,43778.0,43777.0,0.248987]
[1633052681702,0.00011988,43778.0,43777.0,0.42593345]
[1633052681904,0.00011988,43778.0,43777.0,0.76854645]
[1633052682506,0.00011988,43778.0,43777.0,0.309987]
[1633052683703,0.00011988,43778.0,43777.0,0.248987]
[1633052684507,0.00011988,43778.0,43777.0,0.300987]
[1633052685707,0.00011988,43778.0,43777.0,0.248987]
[1633052686510,0.00011988,43778.0,43777.0,0.304987]
[1633052686708,0.00011988,43778.0,43777.0,0.46141533]
[1633052687728,0.1557094,43777.0,43774.0,0.91502965]
[1633052687913,0.2557094,43777.0,43770.0,0.0202]
[1633052688110,0.570843,43776.0,43771.0,0.0202]
[1633052688309,0.570843,43776.0,43765.0,0.00028]
[1633052688310,0.342764,43776.0,43772.0,0.0202]
[1633052688716,0.1557094,43777.0,43773.0,0.3461683]
[1633052688919,0.1557094,43777.0,43774.0,0.0202]
[1633052689110,0.1557094,43777.0,43776.0,1.078079]
[1633052689309,0.1557094,43777.0,43776.0,1.098279]
[1633052689510,0.1557094,43777.0,43776.0,0.248279]
[1633052690510,0.1557094,43777.0,43776.0,0.305279]
[1633052690708,0.1558287,43777.0,43776.0,0.305279]
[1633052691112,0.1558287,43777.0,43776.0,0.51828958]
[1633052691510,0.1558287,43777.0,43776.0,0.35650486]
[1633052691709,0.1558287,43777.0,43776.0,0.29950486]
[1633052692514,0.1558287,43777.0,43776.0,0.360279]
[1633052693112,0.1508287,43777.0,43776.0,0.360279]
[1633052693911,0.1508287,43777.0,43776.0,0.298279]
[1633052694512,0.1508287,43777.0,43776.0,0.360279]
[1633052696314,0.1508287,43777.0,43776.0,0.298279]
[1633052696514,0.1508287,43777.0,43776.0,0.52396063]
[1633052696913,0.1508287,43777.0,43776.0,0.360279]
[1633052697718,0.1508287,43777.0,43776.0,0.298279]
[1633052698118,0.1508287,43777.0,43776.0,0.46449736]
[1633052698517,0.1508287,43777.0,43776.0,0.52649736]
[1633052699519,0.1508287,43777.0,43776.0,0.360279]
[1633052699918,0.1508287,43777.0,43776.0,0.298279]
[1633052700518,0.1508287,43777.0,43776.0,0.359279]
[1633052700723,0.1508287,43777.0,43776.0,0.52371788]
[1633052701522,0.1508287,43777.0,43776.0,0.36048481]
[1633052701918,0.1508287,43777.0,43776.0,0.29948481]
[1633052702521,0.1508287,43777.0,43776.0,0.36148481]
[1633052702719,0.1508287,43777.0,43776.0,0.52435887]
[1633052703124,0.1508287,43777.0,43776.0,0.36148481]
[1633052703923,0.1508287,43777.0,43776.0,0.29948481]
[1633052704523,0.1508287,43777.0,43776.0,0.35948481]
[1633052705933,0.1508287,43777.0,43776.0,0.29948481]
[1633052706328,0.1508287,43777.0,43776.0,0.298279]
[1633052706526,0.1508287,43777.0,43776.0,0.359279]
[1633052708130,1.87e-05,43777.0,43776.0,0.298279]
[1633052708436,0.0006,43785.0,43780.0,1.378079]
[1633052708643,0.0542455,43795.0,43792.0,0.11831494]
[1633052708836,0.0542455,43795.0,43792.0,0.60929255]
[1633052709039,0.0002,43796.0,43794.0,0.228359]
[1633052709234,0.0002,43796.0,43795.0,1.73275327]
[1633052709430,0.0006,43797.0,43795.0,2.29648337]
[1633052709631,0.0008,43798.0,43797.0,1.378079]
[1633052709834,0.0008,43798.0,43797.0,1.90008919]
[1633052710030,0.0006,43798.0,43797.0,1.50784455]
[1633052710229,0.0006,43798.0,43797.0,1.40084724]
[1633052710434,0.0006,43798.0,43797.0,1.55084724]
[1633052710631,0.0006,43798.0,43797.0,1.60684724]
[1633052711034,0.0006,43798.0,43797.0,0.35684724]
[1633052711630,0.0006,43798.0,43797.0,1.45684724]
[1633052712031,0.08836,43800.0,43799.0,1.378079]
[1633052712229,0.08836,43800.0,43799.0,0.248279]
[1633052712429,0.08836,43800.0,43799.0,0.63359714]
[1633052712635,0.08836,43800.0,43799.0,1.03299614]
[1633052712832,0.08836,43800.0,43799.0,0.93299614]
[1633052713637,0.08836,43800.0,43799.0,0.697678]
[1633052713835,0.08836,43800.0,43799.0,0.248279]
[1633052714040,0.08836,43800.0,43799.0,0.0202]
[1633052714236,0.316439,43800.0,43799.0,0.0202]
[1633052714433,0.26497688,43800.0,43799.0,0.0202]
[1633052714634,0.30497688,43800.0,43799.0,0.0662]
[1633052715432,0.30497688,43800.0,43799.0,0.28880868]
[1633052715832,0.26497688,43800.0,43799.0,0.29280868]
[1633052716633,0.26497688,43800.0,43799.0,0.33580868]
[1633052716634,0.31397688,43800.0,43799.0,0.33580868]
[1633052717833,0.31397688,43800.0,43799.0,0.1132]
[1633052718033,0.26497688,43800.0,43799.0,0.0202]
[1633052718433,0.26509633,43800.0,43799.0,0.0202]
[1633052718634,0.30609633,43800.0,43799.0,0.0592]
[1633052720434,0.30609633,43800.0,43799.0,0.0202]
[1633052720634,0.30609633,43800.0,43799.0,0.0602]
[1633052720635,0.30709633,43800.0,43799.0,0.0602]
[1633052721635,0.30709633,43800.0,43799.0,0.33210847]
[1633052721835,0.30709633,43800.0,43799.0,0.29210847]
[1633052722036,0.26509633,43800.0,43799.0,0.29210847]
[1633052722712,0.30609633,43800.0,43799.0,0.33210847]
[1633052723922,0.30609633,43800.0,43799.0,0.29210847]
[1633052723923,0.26509633,43800.0,43799.0,0.29210847]
[1633052724717,0.15620799,43800.0,43799.0,0.33210847]
[1633052725114,0.15620799,43800.0,43799.0,0.32710847]
[1633052725716,0.15620799,43800.0,43799.0,0.1052]
[1633052725916,0.11420799,43800.0,43799.0,0.0202]
[1633052726718,0.15820799,43800.0,43799.0,0.0602]
[1633052728023,0.15820799,43800.0,43799.0,0.04]
[1633052728024,0.55525408,43800.0,43799.0,0.04]
[1633052728424,0.65525408,43800.0,43799.0,0.02867779]
[1633052728616,0.70070663,43800.0,43799.0,0.02867779]
[1633052728818,0.90870257,43800.0,43799.0,0.02867779]
[1633052729017,0.53956934,43800.0,43799.0,0.02867779]
[1633052729219,0.70707096,43800.0,43799.0,0.02867779]
[1633052729622,0.09294232,43799.0,43797.0,0.0023]
[1633052729819,0.68992688,43798.0,43797.0,0.0023]
[1633052730020,1.01031949,43798.0,43797.0,0.0023]
[1633052730220,1.11161691,43798.0,43797.0,0.0023]
[1633052730622,1.16361691,43798.0,43797.0,0.0023]
[1633052730821,0.9432243,43798.0,43797.0,0.0023]
[1633052731021,1.2858693,43798.0,43797.0,0.0023]
[1633052731421,1.07328259,43798.0,43797.0,0.0023]
[1633052732222,1.07328259,43798.0,43794.0,0.01778]
[1633052732422,0.48683973,43797.0,43794.0,0.01778]
[1633052732625,0.30127375,43795.0,43794.0,0.01778]
[1633052733022,0.40127375,43795.0,43794.0,0.01778]
[1633052733222,0.78848027,43795.0,43794.0,0.01778]
[1633052734427,0.62935275,43795.0,43794.0,0.01778]
[1633052734624,0.84926291,43795.0,43794.0,0.01778]
[1633052735226,0.84926291,43795.0,43794.0,0.01678]
[1633052736136,0.84926291,43795.0,43785.0,0.00028]
[1633052736137,0.18732959,43786.0,43785.0,0.00028]
[1633052736331,0.53375733,43786.0,43785.0,0.00028]
[1633052736528,0.76183633,43786.0,43785.0,0.00028]
[1633052736730,0.81383633,43786.0,43785.0,0.02628]
[1633052736930,0.98987954,43786.0,43785.0,0.02628]
[1633052737128,0.91252191,43786.0,43785.0,0.02628]
[1633052737328,1.25522591,43786.0,43785.0,0.02628]
[1633052738131,1.27444581,43786.0,43785.0,0.00028]
[1633052738330,1.37444581,43786.0,43785.0,0.00028]
[1633052738829,1.42944581,43786.0,43785.0,0.01728]
[1633052739434,1.42954903,43786.0,43785.0,0.01728]
[1633052740032,1.23815609,43786.0,43785.0,0.01728]
[1633052740431,1.08447051,43786.0,43785.0,0.00028]
[1633052740632,1.08447051,43786.0,43785.0,0.00828]
[1633052740633,0.79376651,43786.0,43785.0,0.00828]
[1633052741432,0.91540435,43786.0,43785.0,0.00828]
[1633052742034,0.86340435,43786.0,43785.0,0.00028]
[1633052742232,1.08445551,43786.0,43785.0,0.00028]
[1633052742635,1.14045551,43786.0,43785.0,0.00028]
[1633052744036,1.08445551,43786.0,43785.0,0.00028]
[1633052744640,1.13845551,43786.0,43785.0,0.00028]
[1633052746639,1.13545551,43786.0,43785.0,0.00028]
[1633052747038,1.08445551,43786.0,43785.0,0.00028]
[1633052748638,1.14045551,43786.0,43785.0,0.00028]
[1633052750503,1.08445551,43786.0,43785.0,0.00028]
[1633052750703,1.14145551,43786.0,43785.0,0.00028]
[1633052752512,1.08445551,43786.0,43785.0,0.00028]
[1633052752707,1.14045551,43786.0,43785.0,0.00028]
[1633052753114,1.14045551,43786.0,43760.0,0.457019]
[1633052753115,1.89168017,43786.0,43765.0,0.00028]
[1633052753315,0.00125782,43767.0,43765.0,0.00028]
[1633052753511,0.23125162,43767.0,43765.0,0.00028]
[1633052753712,0.06266153,43766.0,43765.0,0.00028]
[1633052753913,0.59074053,43766.0,43765.0,0.00028]
[1633052754114,0.96381579,43766.0,43765.0,0.00028]
[1633052754314,1.40669079,43766.0,43765.0,0.00028]
[1633052754711,1.46269079,43766.0,43765.0,0.00028]
[1633052754912,1.51521551,43766.0,43765.0,0.00028]
[1633052755914,1.45921551,43766.0,43765.0,0.00028]
[1633052756716,1.51321551,43766.0,43765.0,0.00028]
[1633052757917,1.45921551,43766.0,43765.0,0.00028]
[1633052758716,1.51521551,43766.0,43765.0,0.00028]
[1633052759121,0.84742213,43766.0,43765.0,0.00028]
[1633052759520,0.84614622,43766.0,43765.0,0.00028]
[1633052759920,0.79014622,43766.0,43765.0,0.00028]
[1633052760521,1.09014622,43766.0,43765.0,0.00028]
[1633052760721,0.20981298,43764.0,43759.0,0.02008]
[1633052760922,0.30655171,43764.0,43759.0,0.02008]
[1633052761123,0.228079,43763.0,43759.0,0.02008]
[1633052761321,0.30655171,43764.0,43759.0,0.02008]
[1633052761521,0.328079,43763.0,43759.0,0.02008]
[1633052761722,0.0920892,43761.0,43759.0,0.02008]
[1633052761922,0.570975,43760.0,43759.0,0.02008]
[1633052762322,0.87504619,43760.0,43759.0,0.02008]
[1633052762726,0.93104619,43760.0,43759.0,0.02008]
[1633052762933,0.63104619,43760.0,43759.0,0.02008]
[1633052763123,0.93104619,43760.0,43759.0,0.02008]
[1633052763326,0.93226824,43760.0,43759.0,0.02008]
[1633052763525,1.03226824,43760.0,43759.0,0.02008]
[1633052763926,1.03226824,43760.0,43756.0,0.00028]
[1633052764127,0.19134357,43757.0,43756.0,0.00028]
[1633052764326,0.94475394,43757.0,43756.0,0.00028]
[1633052764527,1.04475394,43757.0,43756.0,0.00028]
[1633052764730,1.10375394,43757.0,43756.0,0.00028]
[1633052765329,1.19374095,43757.0,43756.0,0.00028]
[1633052765728,1.10375394,43757.0,43756.0,0.00028]
[1633052766130,0.67227532,43757.0,43756.0,0.00028]
[1633052766332,0.442966,43757.0,43756.0,0.02048]
[1633052766530,0.342966,43757.0,43756.0,0.02048]
[1633052766730,0.391966,43757.0,43756.0,0.02048]
[1633052766929,0.51208556,43757.0,43756.0,0.02048]
[1633052767130,0.9533405,43757.0,43756.0,0.02048]
[1633052767730,0.9533405,43757.0,43756.0,0.00028]
[1633052767930,0.93322094,43757.0,43756.0,0.00028]
[1633052768732,0.93622094,43757.0,43756.0,0.00028]
[1633052769532,0.93122094,43757.0,43756.0,0.00028]
[1633052769932,0.87922094,43757.0,43756.0,0.00028]
[1633052770736,0.92922094,43757.0,43756.0,0.00028]
[1633052771132,0.92929053,43757.0,43756.0,0.00028]
[1633052772136,0.87929053,43757.0,43756.0,0.00028]
[1633052772734,0.93129053,43757.0,43756.0,0.00028]
[1633052773735,0.92629053,43757.0,43756.0,0.00028]
[1633052774134,0.87429053,43757.0,43756.0,0.00028]
[1633052774737,0.92529053,43757.0,43756.0,0.00028]
[1633052775337,0.97657274,43757.0,43756.0,0.00028]
[1633052775542,1.12562274,43757.0,43756.0,0.00028]
[1633052776137,1.07462274,43757.0,43756.0,0.00028]
[1633052776402,1.07431632,43757.0,43756.0,0.00028]
[1633052776736,1.12731632,43757.0,43756.0,0.00028]
[1633052778137,1.07431632,43757.0,43756.0,0.00028]
[1633052778740,1.12931632,43757.0,43756.0,0.00028]
[1633052780341,1.07431632,43757.0,43756.0,0.00028]
[1633052780743,1.12831632,43757.0,43756.0,0.00028]
[1633052782341,1.12831632,43757.0,43750.0,0.02664971]
[1633052782342,0.07904139,43751.0,43750.0,0.02664971]
[1633052782544,0.61635791,43751.0,43750.0,0.02664971]
[1633052782744,0.96525289,43751.0,43750.0,0.02664971]
[1633052782943,1.40830889,43751.0,43750.0,0.02664971]
[1633052783146,0.68373138,43747.0,43746.0,0.00028]
[1633052783350,0.9130494,43747.0,43746.0,0.00028]
[1633052783546,1.0130494,43747.0,43746.0,0.00028]
[1633052783748,1.01793168,43747.0,43746.0,0.00028]
[1633052784150,1.22631431,43747.0,43746.0,0.00028]
[1633052784546,1.56939831,43747.0,43746.0,0.00028]
[1633052784747,1.62539831,43747.0,43746.0,0.00028]
[1633052785948,1.82728831,43747.0,43746.0,0.00028]
[1633052786147,1.77128831,43747.0,43746.0,0.00028]
[1633052786753,1.82728831,43747.0,43746.0,0.00028]
[1633052786952,3.04028831,43747.0,43746.0,0.00028]
[1633052787154,2.83190568,43747.0,43737.0,0.00028]
[1633052787354,0.00128856,43738.0,43737.0,0.00028]
[1633052787551,0.57249656,43738.0,43737.0,0.00028]
[1633052787955,0.85675378,43738.0,43737.0,0.00028]